Workbook

Sheet Pantalla inicial

Sheet Financiera
C11: Estrategia crecimiento de ingresos | I11: Responsable
C13: Valor | D13: Objetivo | E13: Desviación | F13: Desviación % | G13: Situación de alerta
B14: Ventas clientes existentes | C14: =Cli_exist!C25 -> 0 | D14: =C15 -> 0 | E14: =C14-D14 -> 0 | F14: =(C14-D14)/D14 ->  | G14: =C14 -> 0
B15: Ventas periodo anterior | C15: =Cli_exist!D25 -> 0 | D15: =C15 -> 0 | E15: =C15-D15 -> 0 | F15: =(C15-D15)/D15 ->  | G15: =C15 -> 0
B16: Diferencia periodo actual-anterior | C16: =C14-C15 -> 0 | D16: 0 | E16: =E14-E15 -> 0 | F16: =(C16-D16)/D16 ->  | G16: =C16 -> 0
C18: Valor | D18: Objetivo | E18: Desviación | F18: Desviación % | G18: Situación de alerta
B19: Ventas hosteleria | C19: =Hosteleria!C25 -> 0 | D19: =C20*1.05 -> 0 | E19: =C19-D19 -> 0 | F19: =(C19-D19)/D19 ->  | G19: =C19 -> 0
B20: Ventas periodo anterior | C20: =Hosteleria!D25 -> 0 | D20: 0 | E20: =C20-D20 -> 0 | F20: =(C20-D20)/D20 ->  | G20: =C20 -> 0
B21: Diferencia periodo actual-anterior | C21: =C19-C20 -> 0 | D21: 0 | E21: =E19-E20 -> 0 | F21: =(C21-D21)/D21 ->  | G21: =C21 -> 0
C23: Valor | D23: Objetivo | E23: Desviación | F23: Desviación % | G23: Situación de alerta
B24: Ventas serigrafia | C24: =Serigrafia!C25 -> 0 | D24: =C25*1.05 -> 0 | E24: =C24-D24 -> 0 | F24: =(C24-D24)/D24 ->  | G24: =C24 -> 0
B25: Ventas periodo anterior | C25: =Serigrafia!D25 -> 0 | D25: 0 | E25: =C25-D25 -> 0 | F25: =(C25-D25)/D25 ->  | G25: =C25 -> 0
B26: Diferencia periodo actual-anterior | C26: =C24-C25 -> 0 | D26: 0 | E26: =E24-E25 -> 0 | F26: =(C26-D26)/D26 ->  | G26: =C26 -> 0
C28: Valor | D28: Objetivo | E28: Desviación | F28: Desviación % | G28: Situación de alerta
B29: Ventas página web | C29: =Web!B4 -> 0 | D29: =C30*1.05 -> 0 | E29: =C29-D29 -> 0 | F29: =(C29-D29)/D29 ->  | G29: =C29 -> 0
B30: Ventas periodo anterior | C30: =Web!E4 -> 0 | D30: 0 | E30: =C30-D30 -> 0 | F30: =(C30-D30)/D30 ->  | G30: =C30 -> 0
B31: Diferencia periodo actual-anterior | C31: =C29-C30 -> 0 | D31: 0 | E31: =E29-E30 -> 0 | F31: =(C31-D31)/D31 ->  | G31: =C31 -> 0
B32: Page Rank | C32: =Web!G4 -> 0 | D32: 0 | E32: =D32-C32 -> 0 | F32: =(C32-D32)/D32 ->  | G32: =C32 -> 0
B33: Nº compras | C33: =Web!A4 -> 0 | D33: =C34 -> 0 | E33: =D33-C33 -> 0 | G33: =C33 -> 0
B34: Nº compras período anterior | C34: =Web!F4 -> 0 | D34: 0 | E34: =D34-C34 -> 0 | G34: 0
C39: Estrategia de sostenibilidad | I39: Responsable
C41: Valor | D41: Objetivo | E41: Desviación | F41: Desviación % | G41: Situación de alerta
B42: Compras/beneficios netos | C42: 0 | D42: 0 | E42: =C42-D42 -> 0 | F42: =(C42-D42)/D42 ->  | G42: =C42 -> 0
B43: Compras/beneficios netos ant. | E43: =C43-D43 -> 0 | F43: =(C43-D43)/D43 -> 
C45: Valor | D45: Objetivo | E45: Desviación | F45: Desviación % | G45: Situación de alerta
B46: Impagados | C46: =Impagados!C25 -> 0 | D46: =C47 -> 0 | E46: =C46-D46 -> 0 | F46: =(C46-D46)/D46 ->  | G46: =C46 -> 0
B47: Impagados anteriores | C47: =Impagados!D25 -> 0 | D47: 0 | E47: =C47-D47 -> 0 | F47: =(C47-D47)/D47 ->  | G47: =C47 -> 0

Sheet Cliente
C11: Satisfacción y fidelidad de los clientes | I11: Responsable
C13: Valor | D13: Objetivo | E13: Desviación | F13: Desviación % | G13: Situación de alerta
B14: Grado de satisfaccion | C14: =Satisfaccion!K25 -> 4.4 | D14: 200000 | E14: =C14-D14 -> -199995.6 | F14: =(C14-D14)/D14 -> -0.999978 | G14: =C14 -> 4.4
B15: Satisfaccion anterior | C15: =Satisfaccion!M25 ->  | D15: 145000 | E15: =C15-D15 ->  | F15: =(C15-D15)/D15 ->  | G15: =C15 -> 
B16: Diferencia periodo actual-anterior | C16: =C15-C14 ->  | D16: =D14-D15 -> 55000 | E16: =C16-D16 ->  | F16: =(C16-D16)/D16 ->  | G16: =C16 -> 
B17: Grado de fidelidad | C17: =Satisfaccion!L25 -> 5.666666667 | E17: =C17-D17 -> 5.666666667 | G17: =C17 -> 5.666666667
B18: Fidelidad anterior | C18: =Satisfaccion!N25 ->  | G18: =C18 -> 
B19: Diferencia periodo actual-anterior | C19: =C18-C17 -> 
C26: Productos conveniados | I26: Responsable
C28: Valor | D28: Objetivo | E28: Desviación | F28: Desviación % | G28: Situación de alerta
B29: Nº porductos conveniados | C29: =Convenios!E4 -> 0 | D29: 2500000 | E29: =C29-D29 -> -2500000 | F29: =(C29-D29)/D29 -> -1 | G29: =C29 -> 0
B30: Nº convenios anteriores | C30: =Convenios!F4 -> 0 | D30: 2300000 | E30: =C30-D30 -> -2300000 | F30: =(C30-D30)/D30 -> -1 | G30: =C30 -> 0
B31: Diferencia periodo actual-anterior | C31: =C29-C30 -> 0 | D31: 0 | E31: =C31-D31 -> 0 | F31: =(C31-D31)/D31 ->  | G31: =C31 -> 0

Sheet Proceso
C11: Proceso de innovación | I11: Responsable
C13: Valor | D13: Objetivo | E13: Desviación | F13: Desviación % | G13: Situación de alerta
B14: Roturas de stock | C14: =Stock!D4 -> 0 | D14: 0 | E14: =C14-D14 -> 0 | F14: =(C14-D14)/D14 ->  | G14: =C14 -> 0
B15: Roturas anteriores | C15: =Stock!E4 -> 0 | D15: 0 | E15: =C15-D15 -> 0 | F15: =(C15-D15)/D15 ->  | G15: =C15 -> 0
B16: Diferencia periodo actual-anterior | C16: =C15-C14 -> 0 | D16: 0 | E16: 0 | G16: =C16 -> 0
C22: Gestión del cliente | I22: Responsable
C24: Valor | D24: Objetivo | E24: Desviación | F24: Desviación % | G24: Situación de alerta
B25: Plazo dias en servir | C25: 2 | D25: 3 | E25: =C25-D25 -> -1 | F25: =(C25-D25)/D25 -> -0.3333333333 | G25: =C25 -> 2
B26: Plazo anterior | C26: 3 | D26: 4 | E26: =C26-D26 -> -1 | F26: =(C26-D26)/D26 -> -0.25 | G26: =C26 -> 3
B27: Diferencia periodo actual-anterior | C27: =C26-C25 -> 1 | D27: 3 | E27: =C27-D27 -> -2 | F27: =(C27-D27)/D27 -> -0.6666666667 | G27: =C27 -> 1
C33: Proceso operativo | I33: Responsable
C35: Valor | D35: Objetivo | E35: Desviación | F35: Desviación % | G35: Situación de alerta
B36: Errores en pedidos | C36: 2 | D36: 4 | E36: =C36-D36 -> -2 | F36: =(C36-D36)/D36 -> -0.5 | G36: =C36 -> 2
C42: Servicio post-venta | I42: Responsable
C44: Valor | D44: Objetivo | E44: Desviación | F44: Desviación % | G44: Situación de alerta
B45: Devoluciones | C45: 2 | D45: 2 | E45: =C45-D45 -> 0 | F45: =(C45-D45)/D45 -> 0 | G45: =C45 -> 2

Sheet Aprend
C11: Competencias estratégicas | I11: Responsable
C13: Valor | D13: Objetivo | E13: Desviación | F13: Desviación % | G13: Situación de alerta
B14: Pedidos por empleado | C14: 0 | D14: 0 | E14: =C14-D14 -> 0 | F14: =(C14-D14)/D14 ->  | G14: =C14 -> 0
C20: Técnologias estratégicas | I20: Responsable
C22: Valor | D22: Objetivo | E22: Desviación | F22: Desviación % | G22: Situación de alerta
B23: Satisfacción usuarios del sistema | C23: 0 | D23: 0 | E23: =C23-D23 -> 0 | F23: =(C23-D23)/D23 ->  | G23: =C23 -> 0

Sheet Cli_exist
A2: Listado ventas clientes existentes
A3: Código | B3: Nombre | C3: Ventas | D3: Ventas anteriores | E3: Margen
A25: Total | C25: =SUM(C4:C24) -> 0 | D25: =SUM(D4:D24) -> 0 | E25: =AVERAGE(E4:E24) -> 

Sheet Hosteleria
A2: Listado ventas hosteleria
A3: Código | B3: Nombre | C3: Ventas | D3: Ventas anteriores | E3: Margen
A25: Total | C25: =SUM(C4:C24) -> 0 | D25: =SUM(D4:D24) -> 0 | E25: =AVERAGE(E4:E24) -> 

Sheet Serigrafia
A2: Listado ventas serigrafia
A3: Código | B3: Nombre | C3: Ventas | D3: Ventas anteriores | E3: Margen
A25: Total | C25: =SUM(C4:C24) -> 0 | D25: =SUM(D4:D24) -> 0 | E25: =AVERAGE(E4:E24) -> 

Sheet Web
A2: Listado ventas Web
A3: Nº compra | B3: Importe | C3: Margen | D3: Beneficio | E3: Importe anterior | F3: nº comp. Ant | G3: Page rank
B4: =SUM(B5:B101) -> 0 | C4: =AVERAGE(C5:C101) ->  | D4: =SUM(D5:D101) -> 0

Sheet Impagados
A2: Listado de impagados
A3: Código | B3: Nombre | C3: Deuda | D3: Deudas anteriores
A25: Total | C25: =SUM(C4:C24) -> 0 | D25: =SUM(D4:D24) -> 0

Sheet Satisfaccion
A2: Satisfaccion clientes
A3: Código | B3: Nombre | C3: S1 | D3: S2 | E3: S3 | F3: S4 | G3: S5 | H3: F1 | I3: F2 | J3: F3 | K3: S | L3: F | M3: S(ant.) | N3: F(ant.)
C4: 1 | D4: 3 | E4: 5 | F4: 6 | G4: 7 | H4: 8 | I4: 9 | J4: 0 | K4: =(C4+D4+E4+F4+G4)/5 -> 4.4 | L4: =(H4+I4+J4)/3 -> 5.666666667
A25: Total | K25: =AVERAGE(K4:K24) -> 4.4 | L25: =AVERAGE(L4:L24) -> 5.666666667 | M25: =AVERAGE(M4:M24) ->  | N25: =AVERAGE(N4:N24) -> 

Sheet Convenios
A2: Artículos conveniados
A3: Código | B3: Descripcion | C3: Cod. Cliente | D3: Nombre | E3: Nº Art. Conve. | F3: Conv. Ant.
E4: =COUNT(A4:A244) -> 0 | F4: 0

Sheet Stock
A2: Roturas stock
A3: Código | B3: Descripcion | C3: Fecha | D3: Nº roturas | E3: Rot. Ant.
D4: =COUNT(A4:A244) -> 0 | E4: 0
